{"text_format":"1","workbook":"xlsx","n_sheets":3,"sheets":["Zu1","Code1","Code2"],"not_rendered":{"charts":0,"images":0,"macros":1,"external_links":0,"defined_names":4,"comments":0,"pivot_tables":0},"unopened":[],"bounds":{"document_bytes":16777216,"sheet_cells":100000,"rows_first":2000,"rows_last":500,"rows_between":2000,"halvings":0,"cell_chars":16384,"cell_head_chars":4096},"cells_cut":0,"cells_raw":0,"read":"whole","date_system":"1900"}

{"sheet":"Zu1","index":0,"n_rows":0,"n_cols":0,"rows_kept":0,"cut":false,"hidden":false,"merged":[[23,3,23,4],[24,3,24,4]]}

{"sheet":"Code1","index":1,"n_rows":116,"n_cols":12,"rows_kept":116,"cut":false,"hidden":false,"merged":[[1,2,2,2],[0,0,3,1]]}
["線"]
[null,null,"下のプログラムを並べ替えて\n線対称の図形を作ろう"]
[]
[]
[null,"行目","図形をかくプログラム　",null,"線の色"]
[null,1,null,null,"元の色に塗る","いいえ"]
[null,2]
[null,3]
[null,4]
[null,5]
[]
[null,null,"それぞれの頂点の位置を調べる"]
[null,null,"線対称の頂点を打ち　線でつなげる"]
[null,null,"枠内の図形が「フリーフォーム」で1つか調べる"]
[null,null,"図形内を塗るか調べて　「はい」なら塗る"]
[null,null,"上に戻って次の点で同じことをする"]
[]
[]
[null,"行目","確かめ　塗らない方がよくわかる"]
[null,1,"左の枠を　グループ化する"]
[null,2,"色を変え　ゆっくりと　左右反転させる"]
[]
[]
[]
[]
[]
[]
[]
[]
[]
[]
[]
[]
[]
[]
[]
[]
[]
[]
[]
[]
[]
[]
[]
[]
[]
[]
[]
[]
[]
[]
[]
[]
[]
[]
[]
[]
[]
[]
[]
[]
[]
[]
[]
[]
[]
[]
[]
[]
[]
[]
[]
[]
[]
[]
[]
[]
[]
[]
[]
[]
[]
[]
[]
[]
[]
[]
[]
[]
[]
[]
[]
[]
[]
[]
[]
[]
[]
[]
[null,"行目","図形をかくプログラム　"]
[null,1]
[null,2]
[null,3]
[null,4]
[null,5,null,null,null,null,null,null,"x座標","ｙ座標","ｘ増減","ｙ増減"]
[null,null,null,null,null,null,null,1,398.5,63]
[null,null,"それぞれの頂点の位置を調べる",null,null,null,null,2,313.75,79.5,{"$f":"I107-I106","v":-84.75},{"$f":"J107-J106","v":16.5}]
[null,null,"線対称の頂点を打ち　線でつなげる",null,null,null,null,3,358,99.75,{"$f":"I108-I107","v":44.25},{"$f":"J108-J107","v":20.25}]
[null,null,"枠内の図形が「フリーフォーム」で1つか調べる",null,null,null,null,4,312.25,135.75,-45.75,36]
[null,null,"図形内を塗るか調べて　「はい」なら塗る",null,null,null,null,5,379.75,172.5,67.5,36.75]
[null,null,"上に戻って次の点で同じことをする",null,null,null,null,6,428.5,138,48.75,-34.5]
[null,null,null,null,null,null,null,7,398.5,63,-30,-75]
[null,null,null,null,null,null,null,8,null,null,-398.5,-63]
[null,"行目","確かめ　塗らない方がよくわかる"]
[null,1,"左の枠を　グループ化する"]
[null,2,"色を変え　ゆっくりと　左右反転させる"]

{"sheet":"Code2","index":2,"n_rows":116,"n_cols":12,"rows_kept":116,"cut":false,"hidden":false,"merged":[[1,2,2,2],[0,0,3,1]]}
["点"]
[null,null,"下のプログラムを並べ替えて\n点対称の図形を作ろう"]
[]
[]
[null,"行目","図形をかくプログラム　",null,"線の色"]
[null,1,null,null,"元の色に塗る","いいえ"]
[null,2]
[null,3]
[null,4]
[null,5]
[]
[null,null,"それぞれの頂点の位置を調べる"]
[null,null,"点対称の頂点を打ち　線でつなげる"]
[null,null,"枠内の図形が「フリーフォーム」で1つか調べる"]
[null,null,"図形内を塗るか調べて　「はい」なら塗る"]
[null,null,"上に戻って次の点で同じことをする"]
[]
[]
[null,"行目","確かめ　塗らない方がよくわかる"]
[null,1,"左の枠を　グループ化する"]
[null,2,"色を変え　ゆっくりと　左右反転させる"]
[]
[]
[]
[]
[]
[]
[]
[]
[]
[]
[]
[]
[]
[]
[]
[]
[]
[]
[]
[]
[]
[]
[]
[]
[]
[]
[]
[]
[]
[]
[]
[]
[]
[]
[]
[]
[]
[]
[]
[]
[]
[]
[]
[]
[]
[]
[]
[]
[]
[]
[]
[]
[]
[]
[]
[]
[]
[]
[]
[]
[]
[]
[]
[]
[]
[]
[]
[]
[]
[]
[]
[]
[]
[]
[]
[]
[]
[]
[null,"行目","図形をかくプログラム　"]
[null,1]
[null,2]
[null,3]
[null,4]
[null,5,null,null,null,null,null,null,"x座標","ｙ座標","ｘ増減","ｙ増減"]
[null,null,null,null,null,null,null,1,398.5,354.3349609375]
[null,null,"それぞれの頂点の位置を調べる",null,null,null,null,2,313.75,337.8349609375,{"$f":"I107-I106","v":-84.75},{"$f":"J107-J106","v":-16.5}]
[null,null,"点対称の頂点を打ち　線でつなげる",null,null,null,null,3,358,317.5849609375,{"$f":"I108-I107","v":44.25},-20.25]
[null,null,"枠内の図形が「フリーフォーム」で1つか調べる",null,null,null,null,4,312.25,281.5849609375,-45.75,-36]
[null,null,"図形内を塗るか調べて　「はい」なら塗る",null,null,null,null,5,379.75,244.8349609375,67.5,-36.75]
[null,null,"上に戻って次の点で同じことをする",null,null,null,null,6,428.5,279.3349609375,48.75,34.5]
[null,null,null,null,null,null,null,7,398.5,354.3349609375,-30,75]
[null,null,null,null,null,null,null,8,null,null,-398.5,-354.3349609375]
[null,"行目","確かめ　塗らない方がよくわかる"]
[null,1,"左の枠を　グループ化する"]
[null,2,"色を変え　ゆっくりと　左右反転させる"]